bitfinex/quotes_BTCUSD_20220307
["timestamp","ask_amount","ask_price","bid_price","bid_amount"]
[1646683973461,0.1987286,37360.0,37357.0,0.86511458]
[1646683973662,0.145823,37358.0,37357.0,0.86511458]
[1646683973866,0.245823,37358.0,37357.0,0.86511458]
[1646683974718,0.1,37358.0,37357.0,0.86511458]
[1646683974915,0.245823,37358.0,37357.0,0.86511458]
[1646683975116,0.05,37358.0,37357.0,0.90901458]
[1646683975317,0.102,37358.0,37357.0,0.90901458]
[1646683975521,0.052,37358.0,37357.0,0.90901458]
[1646683975720,0.002,37358.0,37357.0,0.90901458]
[1646683976521,0.05,37359.0,37357.0,0.90901458]
[1646683976718,0.08077322,37360.0,37357.0,0.90901458]
[1646683978261,0.13077322,37360.0,37357.0,0.90901458]
[1646683978663,0.13393219,37359.0,37357.0,0.90901458]
[1646683979166,0.145823,37358.0,37357.0,0.50720958]
[1646683979563,0.245823,37358.0,37357.0,0.50720958]
[1646683980963,0.245823,37358.0,37357.0,0.46330958]
[1646683981364,0.248823,37358.0,37357.0,0.46330958]
[1646683983410,0.251823,37358.0,37357.0,0.46330958]
[1646683983609,0.248823,37358.0,37357.0,0.46330958]
[1646683984010,0.248823,37358.0,37357.0,0.46830958]
[1646683984212,0.248823,37358.0,37357.0,0.06650058]
[1646683984213,0.103,37358.0,37357.0,0.06650058]
[1646683984416,0.003,37358.0,37357.0,0.06650058]
[1646683984619,0.03077322,37360.0,37357.0,0.06650058]
[1646683985013,0.02500213,37359.0,37357.0,0.06650058]
[1646683985315,0.41735325,37361.0,37357.0,0.06650058]
[1646683985764,0.27153025,37361.0,37357.0,0.06650058]
[1646683985964,0.145823,37358.0,37357.0,0.06650058]
[1646683986363,0.245823,37358.0,37357.0,0.06650058]
[1646683986565,0.05,37358.0,37357.0,0.06650058]
[1646683986764,0.195823,37358.0,37357.0,0.06650058]
[1646683987165,0.395623,37358.0,37357.0,0.06650058]
[1646683987465,0.397623,37358.0,37357.0,0.06650058]
[1646683987667,0.597623,37358.0,37352.0,0.001]
[1646683987869,0.595823,37353.0,37352.0,0.001]
[1646683988071,1.30820432,37353.0,37352.0,0.001]
[1646683988270,1.30820432,37353.0,37340.0,0.2499]
[1646683988271,0.29166022,37342.0,37340.0,0.2499]
[1646683988468,0.27379318,37344.0,37343.0,0.12170601]
[1646683988668,0.32379318,37344.0,37343.0,0.12170601]
[1646683988870,0.57359318,37344.0,37343.0,0.12170601]
[1646683989066,0.2998,37344.0,37343.0,0.12170601]
[1646683989519,0.433768,37344.0,37343.0,0.12170601]
[1646683991332,0.28805949,37336.0,37334.0,0.001]
[1646683991521,0.145823,37335.0,37334.0,0.001]
[1646683991717,0.195823,37335.0,37334.0,0.151]
[1646683992416,0.395623,37335.0,37334.0,0.151]
[1646683992624,0.2498,37335.0,37334.0,0.151]
[1646683993270,0.395623,37335.0,37334.0,0.151]
[1646683993467,0.395623,37335.0,37329.0,0.002]
[1646683993668,0.145823,37333.0,37329.0,0.002]
[1646683993868,0.212827,37333.0,37331.0,7.465e-05]
[1646683994068,0.312827,37333.0,37331.0,7.465e-05]
[1646683994465,0.1998,37332.0,37331.0,7.465e-05]
[1646683994670,0.05,37331.0,37329.0,0.002]
[1646683995668,0.2498,37331.0,37329.0,0.002]
[1646683996069,0.2998,37331.0,37329.0,0.002]
[1646683996269,0.445623,37331.0,37329.0,0.002]
[1646683997707,0.445623,37331.0,37329.0,0.00030224]
[1646683997911,0.05,37330.0,37328.0,0.00045426]
[1646683998109,0.05,37329.0,37328.0,0.00045426]
[1646683998609,0.195823,37329.0,37328.0,0.00045426]
[1646683998808,0.2471,37329.0,37328.0,0.00045426]
[1646683999011,0.30654171,37329.0,37328.0,0.00045426]
[1646683999211,0.90236471,37329.0,37328.0,0.00045426]
[1646683999411,0.65,37328.0,37327.0,0.002]
[1646683999613,1.00405708,37328.0,37327.0,0.002]
[1646683999816,0.8,37328.0,37327.0,0.002]
[1646684000466,0.9971,37328.0,37327.0,0.002]
[1646684000864,0.3971,37328.0,37327.0,0.002]
[1646684001464,0.4001,37328.0,37326.0,0.001]
[1646684001668,0.58973366,37332.0,37326.0,0.001]
[1646684001669,0.1,37339.0,37326.0,0.30505708]
[1646684001867,0.5,37338.0,37332.0,0.05809902]
[1646684002071,0.5,37338.0,37333.0,0.30405708]
[1646684002266,0.01332,37350.0,37334.0,0.0493]
[1646684002472,0.29444146,37351.0,37345.0,0.17943509]
[1646684002668,0.267939,37354.0,37346.0,0.30405708]
[1646684002669,0.01332,37354.0,37346.0,0.30405708]
[1646684002868,0.145823,37356.0,37346.0,0.30405708]
[1646684003066,0.145823,37356.0,37348.0,0.02677]
[1646684003265,0.145823,37356.0,37348.0,0.33082708]
[1646684003666,0.06695,37361.0,37349.0,0.2945417]
[1646684003867,0.21400755,37367.0,37360.0,0.26135628]
[1646684004068,0.0033,37367.0,37361.0,0.30405708]
[1646684004320,0.0033,37367.0,37360.0,0.62625126]
[1646684004718,0.0033,37367.0,37363.0,0.18759971]
[1646684004919,0.0033,37367.0,37360.0,0.32219418]
[1646684005122,0.0033,37367.0,37360.0,0.37149418]
[1646684005319,0.266832,37366.0,37360.0,0.43842318]
[1646684005519,0.02613047,37365.0,37361.0,0.066931]
[1646684005716,0.03177787,37364.0,37361.0,0.066931]
[1646684005917,0.02526875,37363.0,37361.0,0.57834142]
[1646684006117,0.1999,37366.0,37361.0,0.57834142]
[1646684006118,0.02617412,37362.0,37361.0,0.57834142]
[1646684006319,0.1999,37366.0,37361.0,1.57668842]
[1646684006523,0.0011,37373.0,37365.0,0.02677]
[1646684006727,0.0011,37373.0,37370.0,0.02546]
[1646684006923,0.0011,37373.0,37371.0,0.07607]
[1646684007121,0.0011,37373.0,37372.0,0.39618806]
[1646684007421,0.0011,37373.0,37372.0,0.76012581]
[1646684007969,0.0011,37373.0,37372.0,0.37175964]
[1646684008970,0.02791514,37373.0,37372.0,0.37175964]
[1646684009167,0.0011,37373.0,37372.0,0.37175964]
[1646684009368,0.0011,37373.0,37372.0,0.32245964]
[1646684010573,0.0011,37373.0,37370.0,0.02546]
[1646684010970,0.28091413,37372.0,37370.0,0.02546]
[1646684011471,0.38091413,37372.0,37370.0,0.02546]
[1646684012009,0.05,37372.0,37370.0,0.02546]
[1646684012208,0.0511,37373.0,37370.0,0.02546]
[1646684012610,0.0011,37373.0,37371.0,0.06692]
[1646684013010,0.0011,37373.0,37372.0,0.17357835]
[1646684014010,0.0011,37373.0,37372.0,0.24027554]
[1646684014211,0.0011,37373.0,37370.0,0.172649]
[1646684014212,0.0011,37373.0,37370.0,0.159289]
[1646684014511,0.0011,37373.0,37370.0,0.02546]
[1646684015318,0.1999,37372.0,37370.0,0.02546]
[1646684015584,0.2999,37372.0,37370.0,0.02546]
[1646684016484,0.1,37372.0,37370.0,0.02546]
[1646684016684,0.05,37372.0,37370.0,0.02546]
[1646684017086,0.0511,37373.0,37370.0,0.02546]
[1646684017289,0.0011,37373.0,37370.0,0.02546]
[1646684017490,0.0011,37373.0,37370.0,0.05223]
[1646684017694,0.0011,37373.0,37371.0,0.0493]
[1646684018089,0.0011,37373.0,37371.0,0.216217]
[1646684018287,0.0011,37373.0,37371.0,0.1493]
[1646684018889,0.0011,37374.0,37371.0,0.1493]
[1646684019087,0.2927,37383.0,37372.0,1.4]
[1646684019323,0.066913,37375.0,37371.0,0.0493]
[1646684019925,0.266713,37375.0,37371.0,0.0493]
[1646684020123,0.05,37374.0,37371.0,0.0493]
[1646684020325,0.1,37374.0,37371.0,0.0493]
[1646684021524,0.05,37374.0,37371.0,0.0493]
[1646684021830,0.1998,37377.0,37373.0,0.004177]
[1646684022026,0.1998,37377.0,37375.0,0.004177]
[1646684022224,0.1998,37377.0,37376.0,0.0493]
[1646684022424,0.20073,37388.0,37376.0,0.0493]
[1646684022625,0.066894,37387.0,37385.0,0.31336633]
[1646684022825,0.212717,37387.0,37376.0,0.1493]
[1646684023077,0.212717,37387.0,37376.0,0.0493]
[1646684023078,0.512717,37387.0,37376.0,0.0493]
[1646684023270,0.21835293,37385.0,37376.0,0.0493]
[1646684023471,0.133811,37385.0,37376.0,0.0493]
[1646684023671,0.2498,37384.0,37377.0,0.16156277]
[1646684023871,0.05,37383.0,37380.0,0.066899]
[1646684024074,0.05,37383.0,37379.0,0.29696636]
[1646684024673,0.05,37383.0,37377.0,0.0493]
[1646684025073,0.05,37383.0,37378.0,0.133796]
[1646684025275,0.05,37383.0,37378.0,0.066904]
[1646684025475,0.05,37383.0,37369.0,0.1]
[1646684025476,0.195823,37383.0,37369.0,0.1]
[1646684025678,0.066911,37379.0,37371.0,1.00065301]
[1646684025874,0.1998,37376.0,37371.0,1.00065301]
[1646684026075,0.05,37375.0,37371.0,0.5]
[1646684026278,0.35,37375.0,37369.0,0.1]
[1646684026477,0.05,37375.0,37370.0,0.066919]
[1646684026740,0.06691,37375.0,37370.0,0.066919]
[1646684027129,0.31671,37375.0,37370.0,0.3942813]
[1646684027329,0.05,37374.0,37370.0,0.3942813]
[1646684028234,0.183833,37374.0,37370.0,0.3942813]
[1646684029132,0.383633,37374.0,37370.0,0.3942813]
[1646684029941,0.333633,37374.0,37370.0,0.3942813]
[1646684030137,0.02560694,37375.0,37371.0,0.1]
[1646684030331,0.066903,37377.0,37373.0,0.066903]
[1646684030778,0.03125516,37373.0,37372.0,0.433805]
[1646684030978,0.02815305,37373.0,37372.0,0.133805]
[1646684031176,0.145823,37381.0,37372.0,0.283105]
[1646684031177,0.03415738,37380.0,37372.0,0.283105]
[1646684031378,0.145823,37381.0,37373.0,0.3]
[1646684031379,0.02673487,37374.0,37373.0,0.3]
[1646684031576,0.02673487,37374.0,37373.0,0.1493]
[1646684031577,0.05,37374.0,37373.0,0.1493]
[1646684031878,0.116911,37375.0,37373.0,0.4493]
[1646684032080,0.05,37375.0,37373.0,0.9667]
[1646684032277,0.05,37376.0,37373.0,0.99347]
[1646684032477,0.05,37376.0,37373.0,0.216202]
[1646684032676,0.2498,37376.0,37373.0,0.216202]
[1646684032877,0.8762852,37408.0,37373.0,0.416202]
[1646684032878,0.145823,37387.0,37373.0,0.416202]
[1646684033082,0.619623,37392.0,37374.0,0.8174]
[1646684033282,0.619623,37392.0,37378.0,0.133764]
[1646684033580,0.619623,37392.0,37383.0,0.22432293]
[1646684033581,0.00012185,37390.0,37383.0,0.22432293]
[1646684033778,0.06700485,37390.0,37383.0,0.22432293]
[1646684033981,0.06700485,37390.0,37384.0,0.23728588]
[1646684034230,0.06700485,37390.0,37384.0,0.30417088]
[1646684034429,0.066883,37390.0,37384.0,0.30417088]
[1646684034629,0.06700428,37390.0,37384.0,0.30417088]
[1646684035031,0.06700428,37390.0,37386.0,1.6]
[1646684035236,0.00012128,37390.0,37388.0,0.14142927]
[1646684035433,0.00012128,37390.0,37389.0,0.73014368]
[1646684035630,0.0022,37391.0,37389.0,0.73014368]
[1646684035834,0.0022,37391.0,37390.0,0.1]
[1646684036030,0.0022,37391.0,37390.0,0.22506]
[1646684036232,0.0022,37391.0,37390.0,0.12506]
[1646684036832,0.0044,37396.0,37390.0,0.12506]
[1646684036833,0.0011,37397.0,37391.0,1.6]
[1646684037034,0.0033,37399.0,37391.0,1.6]
[1646684037035,0.0033,37399.0,37393.0,0.066874]
[1646684037234,0.1999,37396.0,37394.0,0.3493]
[1646684037430,0.1999,37396.0,37394.0,1.1667]
[1646684037732,0.1999,37396.0,37395.0,1.2174]
[1646684037971,0.1999,37396.0,37395.0,1.48176478]
[1646684038172,0.070162,37405.0,37397.0,0.00011]
[1646684038378,0.0011,37408.0,37399.0,0.884252]
[1646684038577,0.0011,37408.0,37402.0,0.02677]
[1646684038771,0.042954,37408.0,37403.0,0.11615]
[1646684038970,0.042954,37408.0,37404.0,0.0493]
[1646684039171,0.34161045,37408.0,37404.0,0.0493]
[1646684039375,0.145823,37405.0,37404.0,0.0493]
[1646684040175,0.145823,37405.0,37395.0,1.01506478]
[1646684040176,0.24175314,37399.0,37395.0,0.5]
[1646684040374,0.24175314,37399.0,37396.0,0.0493]
[1646684040375,0.30863414,37399.0,37396.0,0.0493]
[1646684040573,0.145823,37397.0,37396.0,0.0493]
[1646684040774,0.245823,37397.0,37396.0,1.28406539]
[1646684040980,0.245823,37397.0,37396.0,0.78406539]
[1646684041176,0.1,37397.0,37396.0,1.03160777]
[1646684041573,0.195823,37397.0,37396.0,0.78406539]
[1646684042018,0.395723,37397.0,37396.0,0.78406539]
[1646684042620,0.395723,37397.0,37396.0,0.82666539]
[1646684044020,0.395723,37397.0,37396.0,0.78406539]
[1646684044219,0.395723,37397.0,37396.0,0.73476539]
[1646684044820,0.390723,37397.0,37396.0,0.73476539]
[1646684045221,0.1949,37397.0,37396.0,0.73476539]
[1646684045473,0.1949,37397.0,37396.0,1.08406539]
[1646684045669,0.00012235,37399.0,37396.0,2.13576457]
[1646684045868,0.00012235,37399.0,37398.0,0.06685091]
[1646684046070,0.00012235,37399.0,37398.0,0.0493]
[1646684046271,0.00012235,37399.0,37398.0,0.10908671]
[1646684046470,0.00837269,37403.0,37398.0,0.58598571]
[1646684046671,0.00837269,37403.0,37399.0,0.04013]
[1646684046869,0.1948,37405.0,37401.0,1.6]
[1646684047073,0.0022,37409.0,37404.0,0.8174]
[1646684047074,0.066849,37409.0,37404.0,0.8174]
[1646684047274,0.0033,37413.0,37406.0,1.05133831]
[1646684047474,0.0033,37413.0,37411.0,0.8174]
[1646684047674,0.188934,37416.0,37413.0,1.6]
[1646684047875,0.0111,37419.0,37417.0,0.8174]
[1646684048076,0.0111,37419.0,37417.0,0.0493]
[1646684048274,0.066931,37420.0,37419.0,1.5]
[1646684048475,0.066931,37420.0,37419.0,0.0493]
[1646684049076,0.212754,37420.0,37419.0,0.0493]
[1646684049325,0.061931,37420.0,37419.0,0.0493]
[1646684049524,0.061931,37420.0,37417.0,0.0293]
[1646684049726,0.061931,37420.0,37418.0,0.066835]
[1646684049922,0.061931,37420.0,37417.0,0.0493]
[1646684049923,0.207754,37420.0,37417.0,0.0493]
[1646684050129,0.145823,37418.0,37417.0,0.0493]
[1646684050524,0.245823,37418.0,37417.0,0.0493]
[1646684051435,0.145823,37418.0,37415.0,0.1]
[1646684051630,0.145823,37418.0,37415.0,0.15970174]
[1646684051631,0.02927618,37417.0,37415.0,0.15970174]
[1646684051825,0.02796213,37416.0,37415.0,0.25970174]
[1646684052024,0.06684,37417.0,37415.0,0.15970174]
[1646684052225,0.06684,37417.0,37414.0,0.26507599]
[1646684052226,0.02827023,37416.0,37414.0,0.26507599]
[1646684052426,0.02827023,37416.0,37414.0,0.39874999]
[1646684052427,0.17409323,37416.0,37414.0,0.39874999]
[1646684052623,0.0343994,37415.0,37414.0,0.39874999]
[1646684052824,0.06684,37417.0,37414.0,0.39874999]
[1646684053073,0.066843,37416.0,37414.0,1.53612057]
[1646684053272,0.066843,37416.0,37414.0,0.49874999]
[1646684053572,0.07785472,37415.0,37414.0,0.233674]
[1646684053772,0.07785472,37415.0,37414.0,0.1]
[1646684053975,0.04263472,37415.0,37414.0,0.1]
[1646684054172,0.03063241,37414.0,37413.0,0.133678]
[1646684054372,0.066843,37416.0,37413.0,0.133678]
[1646684054573,0.27652162,37414.0,37412.0,0.147039]
[1646684054772,0.212666,37416.0,37413.0,0.0493]
[1646684054773,0.066843,37416.0,37413.0,0.0493]
[1646684054974,0.212666,37416.0,37413.0,0.0493]
[1646684055173,0.145823,37414.0,37413.0,0.0493]
[1646684055379,0.06982006,37413.0,37401.0,0.2482]
[1646684055576,0.066863,37411.0,37408.0,0.004]
[1646684055775,0.195823,37409.0,37408.0,0.004]
[1646684056175,0.245823,37409.0,37408.0,0.004]
[1646684056374,0.52839601,37409.0,37408.0,0.004]
[1646684056824,0.52839601,37409.0,37399.0,0.147086]
[1646684056825,0.72839601,37409.0,37399.0,0.147086]
[1646684057022,0.72839601,37409.0,37399.0,0.35536931]
[1646684057023,0.145823,37403.0,37399.0,0.35536931]
[1646684057223,0.395623,37403.0,37399.0,0.147086]
[1646684057423,0.245823,37403.0,37399.0,0.01336]
[1646684057622,0.245823,37403.0,37402.0,0.31858504]
[1646684058427,0.316671,37403.0,37402.0,0.48043755]
[1646684058627,0.2448,37403.0,37402.0,0.58043755]
[1646684058827,0.2448,37403.0,37402.0,0.59379755]
[1646684059027,0.00012515,37404.0,37402.0,0.58043755]
[1646684059232,0.00012515,37404.0,37403.0,0.9174]
[1646684059627,0.00012515,37404.0,37403.0,0.98667114]
[1646684059826,0.066849,37405.0,37403.0,1.00524]
[1646684060029,0.06697397,37405.0,37404.0,0.01336]
[1646684060229,0.133702,37409.0,37404.0,0.01336]
[1646684060230,0.133702,37409.0,37407.0,0.02677]
[1646684060480,0.133702,37409.0,37406.0,0.96445]
[1646684060680,0.1998,37413.0,37407.0,0.9174]
[1646684060877,0.1998,37413.0,37408.0,0.01336]
[1646684060878,0.145823,37413.0,37408.0,0.01336]
[1646684061080,0.133684,37413.0,37408.0,0.01336]
[1646684061282,0.145823,37411.0,37409.0,0.48361759]
[1646684061476,0.195823,37411.0,37409.0,0.32447452]
[1646684061677,0.1,37411.0,37409.0,0.32447452]
[1646684061978,0.2998,37412.0,37409.0,0.32447452]
[1646684062177,0.2998,37412.0,37410.0,0.066845]
[1646684062577,0.2998,37412.0,37410.0,0.28264845]
[1646684062778,0.2998,37412.0,37410.0,0.066845]
[1646684063177,0.2998,37412.0,37408.0,0.01336]
[1646684063178,0.145823,37411.0,37408.0,0.01336]
[1646684063381,0.145823,37409.0,37405.0,0.05408503]
[1646684063582,0.27782019,37409.0,37405.0,0.05808503]
[1646684063781,0.14410119,37407.0,37405.0,0.05808503]
[1646684064219,0.05,37406.0,37405.0,0.05808503]
[1646684064626,0.2498,37406.0,37405.0,0.05808503]
[1646684064821,0.2498,37406.0,37405.0,0.12494403]
[1646684065221,0.2998,37406.0,37405.0,0.12494403]
[1646684065422,0.066859,37409.0,37408.0,0.14358085]
[1646684068367,0.166859,37409.0,37408.0,0.14358085]
[1646684069772,0.161859,37409.0,37408.0,0.14358085]
[1646684070472,0.611859,37409.0,37408.0,0.14358085]
[1646684071073,1.811859,37409.0,37405.0,0.05408503]
[1646684071274,1.838629,37409.0,37405.0,0.05408503]
[1646684071475,0.51095979,37406.0,37405.0,0.05408503]
[1646684071728,0.61095979,37406.0,37405.0,0.05408503]
[1646684071919,0.33086321,37406.0,37405.0,0.05408503]
[1646684072321,0.1,37406.0,37405.0,0.05408503]
[1646684072519,0.3,37406.0,37405.0,0.05408503]
[1646684075218,0.4999,37406.0,37405.0,0.05408503]
[1646684079627,0.3999,37406.0,37405.0,0.05408503]
[1646684079826,0.1999,37406.0,37405.0,0.05408503]
[1646684080428,0.1999,37406.0,37405.0,1.25765503]
[1646684080623,0.1999,37406.0,37405.0,0.95765503]
[1646684080825,0.00012514,37410.0,37405.0,0.44025503]
[1646684081024,0.00012514,37410.0,37407.0,0.066845]
[1646684081426,0.133688,37413.0,37407.0,0.066845]
[1646684081827,0.00012515,37410.0,37407.0,0.066845]
[1646684082428,0.1999,37408.0,37406.0,0.13369]
[1646684082629,0.05,37407.0,37406.0,0.13369]
[1646684083273,0.2998,37408.0,37406.0,0.13369]
[1646684083474,0.2498,37408.0,37406.0,0.13369]
[1646684083774,0.05,37407.0,37406.0,0.13369]
[1646684084175,0.05,37406.0,37405.0,0.18778503]
[1646684084474,0.2498,37406.0,37405.0,0.18778503]
[1646684084873,0.2498,37406.0,37405.0,0.05408503]
[1646684087018,0.2498,37406.0,37405.0,0.26686315]
[1646684087621,0.1998,37406.0,37405.0,0.56686315]
[1646684087821,0.073,37407.0,37405.0,0.56686315]
[1646684088025,0.073,37407.0,37406.0,0.56043438]
[1646684088220,0.073,37407.0,37406.0,0.66043438]
[1646684088619,0.073,37407.0,37406.0,1.47783438]
[1646684088822,0.066851,37409.0,37407.0,0.93013098]
[1646684089020,0.066851,37409.0,37408.0,0.3]
[1646684089222,0.066851,37409.0,37408.0,0.4]
[1646684089920,0.066851,37409.0,37408.0,0.6]
[1646684091071,0.066851,37409.0,37408.0,0.5]
[1646684091072,0.115851,37409.0,37408.0,0.5]
[1646684091474,0.315651,37409.0,37408.0,0.5]
[1646684091974,0.365651,37409.0,37408.0,0.5]
[1646684092374,0.05,37408.0,37407.0,0.04588998]
[1646684093181,0.05,37408.0,37407.0,0.56346927]
[1646684093378,0.03536729,37414.0,37407.0,0.26346927]
[1646684093581,0.46309763,37423.0,37408.0,0.21757929]
[1646684093582,0.00012515,37410.0,37408.0,0.21757929]
[1646684093879,0.00012515,37410.0,37409.0,0.133682]
[1646684094525,0.066839,37413.0,37409.0,0.40899389]
[1646684094728,0.066839,37413.0,37412.0,0.19457672]
[1646684095125,0.266639,37413.0,37412.0,0.19457672]
[1646684095328,0.366639,37413.0,37412.0,0.19457672]
[1646684095525,0.316639,37413.0,37412.0,0.19457672]
[1646684095827,0.316639,37413.0,37411.0,0.133676]
[1646684095828,0.05,37412.0,37411.0,0.133676]
[1646684096227,0.05,37412.0,37410.0,0.133675]
[1646684096431,0.133712,37411.0,37408.0,0.21757929]
[1646684096629,0.133712,37411.0,37409.0,0.5]
[1646684096630,0.45,37410.0,37409.0,0.5]
[1646684096829,0.4579924,37411.0,37409.0,0.5]
[1646684097028,0.2498,37410.0,37409.0,0.5]
[1646684097227,0.1998,37410.0,37409.0,0.5]
[1646684097429,0.2998,37410.0,37409.0,0.5]
[1646684097627,0.2998,37410.0,37407.0,0.04588998]
[1646684097628,0.06686034,37409.0,37407.0,0.04588998]
[1646684097828,0.05,37409.0,37407.0,0.04588998]
[1646684099077,0.24992502,37410.0,37408.0,0.31509248]
[1646684099276,0.066852,37409.0,37408.0,0.31509248]
[1646684099679,0.066852,37409.0,37408.0,0.71509248]
[1646684099877,0.24992502,37410.0,37408.0,0.71509248]
[1646684100079,0.00012502,37410.0,37409.0,0.01336]
[1646684100276,0.00012502,37410.0,37409.0,0.11336]
[1646684100482,0.066835,37412.0,37409.0,0.33096005]
[1646684100879,0.066835,37412.0,37409.0,0.11336]
[1646684100880,0.00012502,37411.0,37409.0,0.11336]
[1646684101081,0.00012502,37411.0,37410.0,0.5]
[1646684101282,0.00012502,37411.0,37410.0,0.6]
[1646684101481,0.13381702,37411.0,37410.0,0.6]
[1646684101722,0.233692,37411.0,37410.0,0.6]
[1646684102423,0.233692,37411.0,37410.0,0.5]
[1646684102627,0.233692,37411.0,37409.0,0.01336]
[1646684103327,0.233692,37411.0,37408.0,0.01336]
[1646684103832,0.50034761,37411.0,37408.0,0.01336]
[1646684104226,0.30054761,37411.0,37408.0,0.01336]
[1646684104426,0.1998,37410.0,37408.0,0.01336]
[1646684104826,0.05,37409.0,37408.0,0.01336]
[1646684106672,0.05,37409.0,37407.0,0.34370403]
[1646684106871,0.045887,37409.0,37407.0,0.34370403]
[1646684107080,0.066844,37409.0,37408.0,0.88887168]
[1646684107273,0.066844,37409.0,37408.0,0.73393163]
[1646684107472,0.066844,37409.0,37408.0,1.55133163]
[1646684107676,0.066844,37409.0,37408.0,1.37272]
[1646684108074,0.066844,37409.0,37408.0,0.75532]
[1646684108278,0.066844,37409.0,37408.0,0.74196]
[1646684108572,0.066844,37409.0,37408.0,0.95955066]
[1646684108774,0.19992515,37410.0,37409.0,0.02621175]
[1646684108975,0.1998,37410.0,37409.0,0.02621175]
[1646684109229,0.64816024,37410.0,37409.0,0.02621175]
[1646684109623,0.64816024,37410.0,37409.0,0.52621175]
[1646684110228,0.848053,37410.0,37409.0,0.52621175]
[1646684110425,0.648053,37410.0,37409.0,0.52621175]
[1646684110625,0.648053,37410.0,37409.0,0.02621175]
[1646684111427,0.848053,37410.0,37409.0,0.02621175]
[1646684112427,1.42736616,37409.0,37407.0,0.04588998]
[1646684112627,0.45,37408.0,37407.0,0.04588998]
[1646684112826,0.5,37408.0,37407.0,0.04588998]
[1646684113073,0.7498,37408.0,37407.0,0.04588998]
[1646684114471,1.098053,37408.0,37407.0,0.04588998]
[1646684114970,0.898053,37408.0,37407.0,0.04588998]
[1646684116172,0.648053,37408.0,37407.0,0.04588998]
[1646684116835,0.00012482,37410.0,37408.0,1.6]
[1646684117034,0.00012482,37410.0,37409.0,1.6607914]
[1646684117230,0.00012482,37410.0,37409.0,1.65906196]
[1646684117429,0.5,37418.0,37409.0,1.65906196]
[1646684117430,0.066832,37413.0,37409.0,1.65906196]
[1646684117630,0.066832,37413.0,37412.0,1.08934178]
[1646684117833,0.133663,37417.0,37412.0,1.2667]
[1646684118033,0.133663,37417.0,37415.0,1.03494705]
[1646684118235,0.0011,37424.0,37416.0,1.13494705]
[1646684118438,0.0011,37424.0,37417.0,0.8174]
[1646684118632,0.0011,37424.0,37417.0,1.13494705]
[1646684118836,0.0011,37424.0,37419.0,0.05618908]
[1646684119035,0.133647,37422.0,37419.0,1.03494705]
[1646684119232,0.133647,37422.0,37419.0,0.9174]
[1646684119833,0.133647,37422.0,37419.0,0.28778363]
[1646684120033,0.06694581,37421.0,37419.0,0.28778363]
[1646684120242,0.00012481,37421.0,37419.0,0.50533068]
[1646684120483,0.00012481,37421.0,37419.0,0.55971744]
[1646684120686,0.00012481,37421.0,37419.0,1.69822944]
[1646684120889,0.0011,37424.0,37419.0,1.90182159]
[1646684121086,0.0011,37424.0,37419.0,1.72629563]
[1646684121286,0.0011,37424.0,37419.0,1.88847185]
[1646684121287,0.00012481,37422.0,37419.0,1.88847185]
[1646684121485,0.00012481,37422.0,37419.0,2.21012985]
[1646684121690,0.00012481,37422.0,37419.0,4.8812422]
[1646684121886,0.00012481,37422.0,37419.0,4.2652422]
[1646684122093,0.0011,37424.0,37419.0,4.00306598]
[1646684122286,0.0011,37424.0,37419.0,4.00220029]
[1646684122486,0.00012481,37422.0,37419.0,4.00139178]
[1646684122688,0.0011,37436.0,37421.0,0.85901548]
[1646684122887,0.0011,37436.0,37426.0,0.977752]
[1646684123086,0.0001,37434.0,37427.0,0.84417]
[1646684123286,0.0001,37434.0,37433.0,0.8174]
[1646684123487,0.0011,37442.0,37441.0,0.06700198]
[1646684124324,0.117894,37443.0,37441.0,0.26730816]
[1646684124325,0.08794737,37443.0,37441.0,0.26730816]
[1646684124524,0.08794737,37443.0,37441.0,1.08470816]
[1646684124727,0.08794737,37443.0,37442.0,0.1]
[1646684125127,0.23794737,37443.0,37442.0,0.1]
[1646684125525,0.23794737,37443.0,37441.0,0.06700198]
[1646684125931,0.38959881,37442.0,37441.0,0.06700198]
[1646684126135,0.38959881,37442.0,37437.0,0.0493]
[1646684126136,0.2,37437.0,37425.0,0.0999]
[1646684126429,0.15,37431.0,37430.0,0.28080921]
[1646684126831,0.2,37431.0,37430.0,0.38070921]
[1646684127031,0.2,37431.0,37430.0,0.0999]
[1646684127628,0.05,37431.0,37430.0,0.0999]
[1646684127826,0.00012481,37432.0,37427.0,0.8174]
[1646684128078,0.00012481,37432.0,37430.0,0.8174]
[1646684128381,0.1998,37434.0,37429.0,0.066808]
[1646684128382,0.1948,37434.0,37432.0,1.05331482]
[1646684128578,0.3461325,37441.0,37437.0,0.16094778]
[1646684128777,0.283571,37442.0,37434.0,0.8174]
[1646684128977,0.133571,37442.0,37434.0,0.8174]
[1646684129176,0.15,37439.0,37436.0,0.066789]
[1646684129578,0.066784,37439.0,37435.0,0.233578]
[1646684129777,0.333605,37437.0,37435.0,0.1]
[1646684129984,0.333605,37437.0,37432.0,0.0493]
[1646684130186,0.183605,37437.0,37432.0,0.0493]
[1646684130380,0.15,37436.0,37432.0,0.0493]
[1646684130578,0.15,37436.0,37433.0,0.066798]
[1646684130780,0.283605,37436.0,37433.0,0.066798]
[1646684130981,0.54742009,37436.0,37433.0,0.066798]
[1646684131379,0.28372997,37436.0,37433.0,0.066798]
[1646684131825,0.283605,37436.0,37433.0,0.066798]
[1646684132020,0.27372976,37436.0,37433.0,0.066798]
[1646684132221,0.15012476,37436.0,37433.0,0.066798]
[1646684132723,0.00012476,37436.0,37433.0,0.066798]
[1646684132922,0.116802,37437.0,37434.0,0.28088622]
[1646684133120,0.066802,37437.0,37435.0,0.133585]
[1646684133324,0.20012476,37436.0,37429.0,0.1]
[1646684133526,0.066805,37434.0,37429.0,0.1]
[1646684133823,0.216805,37434.0,37426.0,9e-05]
[1646684134023,0.266805,37434.0,37426.0,9e-05]